[Event "Titled Tuesday Blitz June 27 Early 2023"]
[White "Large, Peter G"]
[Black "Wesolowska, Hanna"]
[WhiteFideId "400866"]
[BlackFideId "1104683"]
[WhiteElo "2418"]
[BlackElo "2196"]
[Result "1-0"]
[Round "3"]
[TimeControl "180+2"]
[Date "2023.06.27"]
[WhiteClock "0:02:40"]
[BlackClock "0:00:01"]
[Board "214"]

1. e4 {[%clk 0:02:58]}  c5 {[%clk 0:00:14]} 2. Nc3 {[%clk 0:02:53]}  d6 {[%clk 0:00:14]} 3. Nf3 {[%clk 0:02:52]}  Nf6 {[%clk 0:00:15]} 4. d4 {[%clk 0:02:53]}  cxd4 {[%clk 0:00:15]} 5. Nxd4 {[%clk 0:02:53]}  a6 {[%clk 0:00:16]} 6. Bc4 {[%clk 0:02:53]}  g6 {[%clk 0:00:17]} 7. f3 {[%clk 0:02:46]}  Bg7 {[%clk 0:00:18]} 8. Be3 {[%clk 0:02:47]}  O-O {[%clk 0:00:17]} 9. Qd2 {[%clk 0:02:47]}  b5 {[%clk 0:00:17]} 10. Bb3 {[%clk 0:02:45]}  Bb7 {[%clk 0:00:16]} 11. h4 {[%clk 0:02:45]}  h5 {[%clk 0:00:15]} 12. Bh6 {[%clk 0:02:44]}  Nbd7 {[%clk 0:00:14]} 13. Bxg7 {[%clk 0:02:44]}  Kxg7 {[%clk 0:00:15]} 14. g4 {[%clk 0:02:40]}  hxg4 {[%clk 0:00:15]} 15. h5 {[%clk 0:02:41]}  gxh5 {[%clk 0:00:12]} 16. Qg5+ {[%clk 0:02:39]}  Kh7 {[%clk 0:00:10]} 17. Rxh5+ {[%clk 0:02:39]}  Nxh5 {[%clk 0:00:10]} 18. Qxh5+ {[%clk 0:02:39]}  Kg7 {[%clk 0:00:10]} 19. Qg5+ {[%clk 0:02:40]}  Kh7 {[%clk 0:00:01]} 20. O-O-O {[%clk 0:02:40]} 1-0


[Site "https://www.chess.com"]

[Event "Titled Tuesday Blitz June 27 Early 2023"]
[White "Srdanovic, Jovana"]
[Black "Sariego Figueredo, Wilfredo"]
[WhiteFideId "954810"]
[BlackFideId "3500080"]
[WhiteElo "2418"]
[BlackElo "2191"]
[Result "0-1"]
[Round "3"]
[TimeControl "180+2"]
[Date "2023.06.27"]
[WhiteClock "0:00:08"]
[BlackClock "0:00:41"]
[Board "215"]

1. d4 {[%clk 0:03:00]}  d5 {[%clk 0:02:58]} 2. c4 {[%clk 0:02:54]}  c6 {[%clk 0:02:58]} 3. Nc3 {[%clk 0:02:52]}  Nf6 {[%clk 0:02:56]} 4. Nf3 {[%clk 0:02:52]}  a6 {[%clk 0:02:55]} 5. e3 {[%clk 0:02:47]}  e6 {[%clk 0:02:52]} 6. Qc2 {[%clk 0:02:38]}  Be7 {[%clk 0:02:49]} 7. b3 {[%clk 0:02:33]}  O-O {[%clk 0:02:47]} 8. Bb2 {[%clk 0:02:23]}  Re8 {[%clk 0:02:43]} 9. Bd3 {[%clk 0:02:17]}  dxc4 {[%clk 0:02:39]} 10. bxc4 {[%clk 0:02:18]}  b5 {[%clk 0:02:37]} 11. a3 {[%clk 0:02:13]}  Bb7 {[%clk 0:02:34]} 12. O-O {[%clk 0:02:04]}  Nbd7 {[%clk 0:02:31]} 13. Rab1 {[%clk 0:02:04]}  Rb8 {[%clk 0:02:26]} 14. Rfd1 {[%clk 0:02:00]}  h6 {[%clk 0:02:15]} 15. e4 {[%clk 0:01:54]}  Qa5 {[%clk 0:02:08]} 16. e5 {[%clk 0:01:51]}  bxc4 {[%clk 0:02:08]} 17. Bxc4 {[%clk 0:01:42]}  Nd5 {[%clk 0:02:08]} 18. Ne4 {[%clk 0:01:39]}  N7b6 {[%clk 0:01:51]} 19. Ba2 {[%clk 0:01:18]}  Rec8 {[%clk 0:01:43]} 20. Rbc1 {[%clk 0:00:53]}  Na4 {[%clk 0:01:28]} 21. Bb1 {[%clk 0:00:40]}  Nxb2 {[%clk 0:01:27]} 22. Qxb2 {[%clk 0:00:31]}  Qxa3 {[%clk 0:01:27]} 23. Qc2 {[%clk 0:00:30]}  Nb4 {[%clk 0:01:22]} 24. Qe2 {[%clk 0:00:24]}  Nd5 {[%clk 0:01:11]} 25. Nc5 {[%clk 0:00:20]}  Bxc5 {[%clk 0:01:07]} 26. dxc5 {[%clk 0:00:19]}  Nc3 {[%clk 0:01:01]} 27. Qd3 {[%clk 0:00:15]}  Nxb1 {[%clk 0:00:59]} 28. Qxb1 {[%clk 0:00:14]}  Ba8 {[%clk 0:00:56]} 29. Qe4 {[%clk 0:00:13]}  Rd8 {[%clk 0:00:50]} 30. h4 {[%clk 0:00:12]}  Rxd1+ {[%clk 0:00:47]} 31. Rxd1 {[%clk 0:00:12]}  Qxc5 {[%clk 0:00:47]} 32. h5 {[%clk 0:00:10]}  Qb4 {[%clk 0:00:42]} 33. Rd7 {[%clk 0:00:08]}  Qxe4 {[%clk 0:00:41]} 0-1


[Site "https://www.chess.com"]

[Event "Titled Tuesday Blitz June 27 Early 2023"]
[White "Omariev, Maksim"]
[Black "ilya2700"]
[WhiteFideId "4193423"]
[WhiteElo "2415"]
[BlackElo "2176"]
[Result "1-0"]
[Round "3"]
[TimeControl "180+2"]
[Date "2023.06.27"]
[WhiteClock "0:00:04"]
[BlackClock "0:00:10"]
[Board "217"]

1. g4 {[%clk 0:02:53]}  c5 {[%clk 0:02:55]} 2. Bg2 {[%clk 0:02:52]}  e6 {[%clk 0:02:55]} 3. d3 {[%clk 0:02:49]}  d5 {[%clk 0:02:56]} 4. Nc3 {[%clk 0:02:49]}  Nc6 {[%clk 0:02:56]} 5. h4 {[%clk 0:02:49]}  h6 {[%clk 0:02:56]} 6. e4 {[%clk 0:02:48]}  Nf6 {[%clk 0:02:54]} 7. g5 {[%clk 0:02:44]}  hxg5 {[%clk 0:02:53]} 8. hxg5 {[%clk 0:02:45]}  Rxh1 {[%clk 0:02:49]} 9. Bxh1 {[%clk 0:02:46]}  d4 {[%clk 0:02:40]} 10. Nce2 {[%clk 0:01:57]}  Nd7 {[%clk 0:02:36]} 11. Ng3 {[%clk 0:01:52]}  b6 {[%clk 0:02:32]} 12. g6 {[%clk 0:01:47]}  f6 {[%clk 0:02:24]} 13. Bd2 {[%clk 0:01:38]}  Bb7 {[%clk 0:02:23]} 14. Bg2 {[%clk 0:01:31]}  Qc7 {[%clk 0:02:23]} 15. Bh3 {[%clk 0:01:29]}  e5 {[%clk 0:02:17]} 16. Qh5 {[%clk 0:01:08]}  O-O-O {[%clk 0:02:15]} 17. N1e2 {[%clk 0:00:54]}  Kb8 {[%clk 0:02:09]} 18. a3 {[%clk 0:00:46]}  Ne7 {[%clk 0:01:32]} 19. b3 {[%clk 0:00:40]}  b5 {[%clk 0:01:19]} 20. a4 {[%clk 0:00:38]}  b4 {[%clk 0:01:07]} 21. Bxd7 {[%clk 0:00:24]}  Qxd7 {[%clk 0:01:03]} 22. f4 {[%clk 0:00:23]}  Nc6 {[%clk 0:00:53]} 23. Qf5 {[%clk 0:00:16]}  Qc7 {[%clk 0:00:45]} 24. Kf2 {[%clk 0:00:16]}  Bd6 {[%clk 0:00:36]} 25. Qg4 {[%clk 0:00:07]}  Rh8 {[%clk 0:00:35]} 26. f5 {[%clk 0:00:06]}  Qd8 {[%clk 0:00:32]} 27. Rh1 {[%clk 0:00:05]}  a5 {[%clk 0:00:29]} 28. Rh5 {[%clk 0:00:04]}  Bc8 {[%clk 0:00:22]} 29. Qh4 {[%clk 0:00:03]}  Rxh5 {[%clk 0:00:22]} 30. Qxh5 {[%clk 0:00:04]}  Bf8 {[%clk 0:00:22]} 31. Qh7 {[%clk 0:00:04]}  Qe7 {[%clk 0:00:21]} 32. Nh5 {[%clk 0:00:04]}  Bb7 {[%clk 0:00:19]} 33. Neg3 {[%clk 0:00:04]}  Bc8 {[%clk 0:00:18]} 34. Qg8 {[%clk 0:00:05]}  Bb7 {[%clk 0:00:17]} 35. Qc4 {[%clk 0:00:04]}  Ka7 {[%clk 0:00:15]} 36. Qg8 {[%clk 0:00:03]}  Bc8 {[%clk 0:00:13]} 37. Nf1 {[%clk 0:00:03]}  Ba6 {[%clk 0:00:12]} 38. Nh2 {[%clk 0:00:03]}  Bb7 {[%clk 0:00:11]} 39. Ng4 {[%clk 0:00:03]}  Nd8 {[%clk 0:00:11]} 40. Qc4 {[%clk 0:00:02]}  Ba6 {[%clk 0:00:10]} 41. Qg8 {[%clk 0:00:02]}  Bb7 {[%clk 0:00:11]} 42. Ngxf6 {[%clk 0:00:02]}  gxf6 {[%clk 0:00:10]} 43. g7 {[%clk 0:00:02]}  Bxg7 {[%clk 0:00:08]} 44. Qxg7 {[%clk 0:00:03]}  Qd6 {[%clk 0:00:05]} 45. Qxf6 {[%clk 0:00:02]}  Qc7 {[%clk 0:00:03]} 46. Bg5 {[%clk 0:00:02]}  Qh7 {[%clk 0:00:04]} 47. Ng3 {[%clk 0:00:01]}  Qh2+ {[%clk 0:00:04]} 48. Kf3 {[%clk 0:00:02]}  Nc6 {[%clk 0:00:01]} 49. Qh6 {[%clk 0:00:02]}  Qxc2 {[%clk 0:00:02]} 50. f6 {[%clk 0:00:02]}  Qxd3+ {[%clk 0:00:03]} 51. Kg4 {[%clk 0:00:03]}  Qxe4+ {[%clk 0:00:03]} 52. Nxe4 {[%clk 0:00:03]}  d3 {[%clk 0:00:04]} 53. Nxc5 {[%clk 0:00:03]}  Nd4 {[%clk 0:00:05]} 54. Bd2 {[%clk 0:00:03]}  Ne2 {[%clk 0:00:06]} 55. Kg5 {[%clk 0:00:02]}  Nd4 {[%clk 0:00:05]} 56. Kg6 {[%clk 0:00:02]}  Ne6 {[%clk 0:00:06]} 57. f7 {[%clk 0:00:02]}  Nxc5 {[%clk 0:00:07]} 58. f8=Q {[%clk 0:00:02]}  Ne6 {[%clk 0:00:08]} 59. Qd6 {[%clk 0:00:02]}  Nf4+ {[%clk 0:00:09]} 60. Kg7 {[%clk 0:00:01]}  Be4 {[%clk 0:00:10]} 61. Bxf4 {[%clk 0:00:02]}  d2 {[%clk 0:00:09]} 62. Qc5+ {[%clk 0:00:01]}  Kb7 {[%clk 0:00:09]} 63. Bxd2 {[%clk 0:00:02]}  Kb8 {[%clk 0:00:10]} 64. Qhb6+ {[%clk 0:00:03]}  Ka8 {[%clk 0:00:10]} 65. Qa7# {[%clk 0:00:04]} 1-0


[Site "https://www.chess.com"]

[Event "Titled Tuesday Blitz June 27 Early 2023"]
[White "Luxama, Jacques Muller"]
[Black "Gulkov, Igor A."]
[WhiteFideId "11900113"]
[BlackFideId "4120973"]
[WhiteElo "2171"]
[BlackElo "2413"]
[Result "1-0"]
[Round "3"]
[TimeControl "180+2"]
[Date "2023.06.27"]
[WhiteClock "0:00:48"]
[BlackClock "0:00:00"]
[Board "218"]

1. e4 {[%clk 0:03:00]}  c5 {[%clk 0:02:59]} 2. Nf3 {[%clk 0:03:00]}  d6 {[%clk 0:02:56]} 3. Bb5+ {[%clk 0:02:59]}  Bd7 {[%clk 0:02:56]} 4. Bxd7+ {[%clk 0:02:59]}  Qxd7 {[%clk 0:02:56]} 5. O-O {[%clk 0:02:59]}  Nf6 {[%clk 0:02:56]} 6. Re1 {[%clk 0:02:59]}  Nc6 {[%clk 0:02:55]} 7. c3 {[%clk 0:02:59]}  e6 {[%clk 0:02:55]} 8. d4 {[%clk 0:02:59]}  cxd4 {[%clk 0:02:55]} 9. cxd4 {[%clk 0:03:00]}  d5 {[%clk 0:02:55]} 10. e5 {[%clk 0:03:00]}  Ne4 {[%clk 0:02:55]} 11. Nbd2 {[%clk 0:03:00]}  Nxd2 {[%clk 0:02:55]} 12. Bxd2 {[%clk 0:03:01]}  Be7 {[%clk 0:02:55]} 13. a3 {[%clk 0:03:01]}  O-O {[%clk 0:02:54]} 14. h4 {[%clk 0:02:59]}  h6 {[%clk 0:02:52]} 15. Qe2 {[%clk 0:02:52]}  f5 {[%clk 0:02:48]} 16. exf6 {[%clk 0:02:46]}  Rxf6 {[%clk 0:02:48]} 17. b4 {[%clk 0:02:11]}  a6 {[%clk 0:02:43]} 18. Rab1 {[%clk 0:02:08]}  Bd6 {[%clk 0:02:30]} 19. a4 {[%clk 0:02:05]}  Raf8 {[%clk 0:02:08]} 20. Bc3 {[%clk 0:01:58]}  Ne7 {[%clk 0:02:02]} 21. b5 {[%clk 0:01:43]}  Ra8 {[%clk 0:01:29]} 22. Bb4 {[%clk 0:01:39]}  Nf5 {[%clk 0:01:15]} 23. Bxd6 {[%clk 0:01:29]}  Nxd6 {[%clk 0:01:08]} 24. Ne5 {[%clk 0:01:28]}  Qd8 {[%clk 0:01:02]} 25. Ng4 {[%clk 0:01:24]}  Ne4 {[%clk 0:00:23]} 26. Nxf6+ {[%clk 0:01:19]}  Qxf6 {[%clk 0:00:23]} 27. bxa6 {[%clk 0:01:08]}  Rxa6 {[%clk 0:00:23]} 28. Rxb7 {[%clk 0:01:05]}  Rxa4 {[%clk 0:00:23]} 29. f3 {[%clk 0:01:02]}  Qxd4+ {[%clk 0:00:13]} 30. Qe3 {[%clk 0:01:01]}  Qxe3+ {[%clk 0:00:12]} 31. Rxe3 {[%clk 0:01:01]}  Ra1+ {[%clk 0:00:10]} 32. Kh2 {[%clk 0:01:00]}  Nc5 {[%clk 0:00:10]} 33. Rc7 {[%clk 0:00:57]}  Rc1 {[%clk 0:00:10]} 34. Rxe6 {[%clk 0:00:54]}  Nxe6 {[%clk 0:00:09]} 35. Rxc1 {[%clk 0:00:54]}  Kf7 {[%clk 0:00:10]} 36. Rc6 {[%clk 0:00:51]}  d4 {[%clk 0:00:10]} 37. Rd6 {[%clk 0:00:51]}  Kf6 {[%clk 0:00:10]} 38. Kg3 {[%clk 0:00:51]}  Ke5 {[%clk 0:00:10]} 39. Rd7 {[%clk 0:00:50]}  g6 {[%clk 0:00:10]} 40. Kf2 {[%clk 0:00:49]}  h5 {[%clk 0:00:10]} 41. g3 {[%clk 0:00:49]}  Kf5 {[%clk 0:00:09]} 42. Rd5+ {[%clk 0:00:49]}  Kf6 {[%clk 0:00:09]} 43. f4 {[%clk 0:00:49]}  Kf7 {[%clk 0:00:06]} 44. Kf3 {[%clk 0:00:49]}  Kf6 {[%clk 0:00:06]} 45. Ke4 {[%clk 0:00:48]}  Kf7 {[%clk 0:00:00]} 46. Ke5 {[%clk 0:00:48]} 1-0


[Site "https://www.chess.com"]

[Event "Titled Tuesday Blitz June 27 Early 2023"]
[White "Gatterer, Florian"]
[Black "Ivanova, Karina"]
[WhiteFideId "811688"]
[BlackFideId "24139750"]
[WhiteElo "2412"]
[BlackElo "2168"]
[Result "1/2-1/2"]
[Round "3"]
[TimeControl "180+2"]
[Date "2023.06.27"]
[WhiteClock "0:00:41"]
[BlackClock "0:00:04"]
[Board "219"]

1. b3 {[%clk 0:02:59]}  e5 {[%clk 0:02:56]} 2. Bb2 {[%clk 0:02:57]}  Nc6 {[%clk 0:02:56]} 3. e3 {[%clk 0:02:58]}  Nf6 {[%clk 0:02:55]} 4. Nf3 {[%clk 0:02:55]}  Bd6 {[%clk 0:02:54]} 5. d4 {[%clk 0:02:53]}  exd4 {[%clk 0:02:53]} 6. Nxd4 {[%clk 0:02:52]}  Nxd4 {[%clk 0:02:51]} 7. Bxd4 {[%clk 0:02:51]}  O-O {[%clk 0:02:47]} 8. Be2 {[%clk 0:02:51]}  c6 {[%clk 0:02:39]} 9. O-O {[%clk 0:02:49]}  Bc7 {[%clk 0:02:38]} 10. c4 {[%clk 0:02:48]}  d5 {[%clk 0:02:27]} 11. Nc3 {[%clk 0:02:46]}  dxc4 {[%clk 0:02:18]} 12. bxc4 {[%clk 0:02:46]}  Bf5 {[%clk 0:02:10]} 13. h3 {[%clk 0:02:41]}  Qd6 {[%clk 0:01:49]} 14. f4 {[%clk 0:02:40]}  c5 {[%clk 0:01:36]} 15. Bxf6 {[%clk 0:02:33]}  Qxf6 {[%clk 0:01:35]} 16. Nd5 {[%clk 0:02:33]}  Qd6 {[%clk 0:01:27]} 17. Nxc7 {[%clk 0:02:32]}  Qxc7 {[%clk 0:01:27]} 18. Bf3 {[%clk 0:02:32]}  Rad8 {[%clk 0:01:23]} 19. Qb3 {[%clk 0:02:31]}  b6 {[%clk 0:01:21]} 20. Rad1 {[%clk 0:02:27]}  Rfe8 {[%clk 0:01:18]} 21. Bd5 {[%clk 0:02:23]}  Qe7 {[%clk 0:01:14]} 22. Rfe1 {[%clk 0:02:14]}  Be4 {[%clk 0:01:11]} 23. a4 {[%clk 0:02:05]}  Bxd5 {[%clk 0:01:07]} 24. Rxd5 {[%clk 0:01:59]}  Rxd5 {[%clk 0:01:03]} 25. cxd5 {[%clk 0:02:00]}  f5 {[%clk 0:01:03]} 26. a5 {[%clk 0:01:41]}  Qd6 {[%clk 0:00:57]} 27. axb6 {[%clk 0:01:40]}  axb6 {[%clk 0:00:57]} 28. Kf2 {[%clk 0:01:38]}  Rd8 {[%clk 0:00:54]} 29. Rb1 {[%clk 0:01:33]}  Qxd5 {[%clk 0:00:50]} 30. Qxd5+ {[%clk 0:01:33]}  Rxd5 {[%clk 0:00:50]} 31. Rxb6 {[%clk 0:01:34]}  Rd2+ {[%clk 0:00:43]} 32. Kf3 {[%clk 0:01:33]}  g6 {[%clk 0:00:40]} 33. Rb7 {[%clk 0:01:31]}  c4 {[%clk 0:00:35]} 34. Rc7 {[%clk 0:01:30]}  Rc2 {[%clk 0:00:35]} 35. g4 {[%clk 0:01:30]}  Rh2 {[%clk 0:00:27]} 36. Kg3 {[%clk 0:01:21]}  Re2 {[%clk 0:00:21]} 37. Rxc4 {[%clk 0:01:20]}  Rxe3+ {[%clk 0:00:20]} 38. Kh4 {[%clk 0:01:21]}  fxg4 {[%clk 0:00:20]} 39. hxg4 {[%clk 0:01:20]}  Re7 {[%clk 0:00:20]} 40. Rc6 {[%clk 0:01:17]}  Kg7 {[%clk 0:00:20]} 41. Rb6 {[%clk 0:01:17]}  h6 {[%clk 0:00:20]} 42. Ra6 {[%clk 0:01:16]}  Rf7 {[%clk 0:00:20]} 43. Kg3 {[%clk 0:01:15]}  Re7 {[%clk 0:00:19]} 44. Rc6 {[%clk 0:01:15]}  Re3+ {[%clk 0:00:19]} 45. Kf2 {[%clk 0:01:15]}  Re7 {[%clk 0:00:19]} 46. Kf3 {[%clk 0:01:13]}  Rf7 {[%clk 0:00:18]} 47. Ke4 {[%clk 0:01:11]}  Re7+ {[%clk 0:00:18]} 48. Kd4 {[%clk 0:01:11]}  Rf7 {[%clk 0:00:18]} 49. Ke5 {[%clk 0:01:10]}  Re7+ {[%clk 0:00:18]} 50. Re6 {[%clk 0:01:07]}  Rf7 {[%clk 0:00:15]} 51. f5 {[%clk 0:01:07]}  gxf5 {[%clk 0:00:15]} 52. gxf5 {[%clk 0:01:07]}  h5 {[%clk 0:00:15]} 53. Rg6+ {[%clk 0:01:07]}  Kh7 {[%clk 0:00:15]} 54. Rg2 {[%clk 0:01:04]}  Rg7 {[%clk 0:00:10]} 55. Rh2 {[%clk 0:01:01]}  Kh6 {[%clk 0:00:10]} 56. Ke6 {[%clk 0:00:59]}  Rg1 {[%clk 0:00:06]} 57. f6 {[%clk 0:00:58]}  Re1+ {[%clk 0:00:06]} 58. Kf7 {[%clk 0:00:59]}  Kg5 {[%clk 0:00:06]} 59. Kg7 {[%clk 0:00:58]}  h4 {[%clk 0:00:05]} 60. Rg2+ {[%clk 0:00:55]}  Kh5 {[%clk 0:00:03]} 61. f7 {[%clk 0:00:55]}  Re7 {[%clk 0:00:02]} 62. Kf6 {[%clk 0:00:53]}  Rxf7+ {[%clk 0:00:02]} 63. Kxf7 {[%clk 0:00:53]}  h3 {[%clk 0:00:03]} 64. Rg8 {[%clk 0:00:51]}  Kh4 {[%clk 0:00:02]} 65. Kf6 {[%clk 0:00:51]}  h2 {[%clk 0:00:03]} 66. Kf5 {[%clk 0:00:52]}  Kh3 {[%clk 0:00:03]} 67. Kf4 {[%clk 0:00:42]}  h1=Q {[%clk 0:00:03]} 68. Rh8+ {[%clk 0:00:41]}  Kg2 {[%clk 0:00:03]} 69. Rxh1 {[%clk 0:00:41]}  Kxh1 {[%clk 0:00:04]} 1/2-1/2


[Site "https://www.chess.com"]

[Event "Titled Tuesday Blitz June 27 Early 2023"]
[White "Tarnowska, Aleksandra"]
[Black "Kopczynski, Michal"]
[WhiteFideId "1180967"]
[BlackFideId "1124200"]
[WhiteElo "2154"]
[BlackElo "2407"]
[Result "0-1"]
[Round "3"]
[TimeControl "180+2"]
[Date "2023.06.27"]
[WhiteClock "0:00:02"]
[BlackClock "0:01:01"]
[Board "223"]

1. e4 {[%clk 0:02:57]}  b6 {[%clk 0:02:59]} 2. d4 {[%clk 0:02:54]}  Bb7 {[%clk 0:03:00]} 3. Nc3 {[%clk 0:02:49]}  e6 {[%clk 0:03:00]} 4. f4 {[%clk 0:02:41]}  Nf6 {[%clk 0:03:00]} 5. Bd3 {[%clk 0:02:40]}  d5 {[%clk 0:03:00]} 6. e5 {[%clk 0:02:40]}  Ne4 {[%clk 0:03:00]} 7. Nf3 {[%clk 0:02:36]}  Bb4 {[%clk 0:02:57]} 8. Bd2 {[%clk 0:02:36]}  Nxd2 {[%clk 0:02:56]} 9. Qxd2 {[%clk 0:02:36]}  c5 {[%clk 0:02:56]} 10. a3 {[%clk 0:02:30]}  cxd4 {[%clk 0:02:53]} 11. Nxd4 {[%clk 0:02:14]}  Bc5 {[%clk 0:02:44]} 12. Nce2 {[%clk 0:02:08]}  O-O {[%clk 0:02:30]} 13. O-O {[%clk 0:01:51]}  Ba6 {[%clk 0:02:25]} 14. b4 {[%clk 0:01:33]}  Bxd3 {[%clk 0:02:18]} 15. Qxd3 {[%clk 0:01:24]}  Be7 {[%clk 0:02:17]} 16. Rf3 {[%clk 0:01:22]}  g6 {[%clk 0:02:15]} 17. Rh3 {[%clk 0:00:26]}  Qc8 {[%clk 0:02:02]} 18. Ng3 {[%clk 0:00:20]}  Qc4 {[%clk 0:01:55]} 19. Qe3 {[%clk 0:00:11]}  Rc8 {[%clk 0:01:45]} 20. Rd1 {[%clk 0:00:08]}  Qc3 {[%clk 0:01:36]} 21. Qf2 {[%clk 0:00:07]}  Nc6 {[%clk 0:01:34]} 22. f5 {[%clk 0:00:06]}  Nxd4 {[%clk 0:01:26]} 23. fxg6 {[%clk 0:00:03]}  fxg6 {[%clk 0:01:20]} 24. Rxd4 {[%clk 0:00:02]}  Qa1+ {[%clk 0:01:06]} 25. Nf1 {[%clk 0:00:02]}  Rxc2 {[%clk 0:01:07]} 26. Qh4 {[%clk 0:00:01]}  Bxh4 {[%clk 0:01:04]} 27. Rdxh4 {[%clk 0:00:02]}  Rf8 {[%clk 0:01:02]} 28. Rxh7 {[%clk 0:00:02]}  Rxf1# {[%clk 0:01:01]} 0-1


[Site "https://www.chess.com"]

[Event "Titled Tuesday Blitz June 27 Early 2023"]
[White "BenchGM"]
[Black "Mangialardo, Tiago Carvalho"]
[BlackFideId "2130718"]
[WhiteElo "2405"]
[BlackElo "2148"]
[Result "1-0"]
[Round "3"]
[TimeControl "180+2"]
[Date "2023.06.27"]
[WhiteClock "0:00:27"]
[BlackClock "0:00:00"]
[Board "224"]

1. e4 {[%clk 0:03:00]}  Nf6 {[%clk 0:02:59]} 2. e5 {[%clk 0:03:00]}  Nd5 {[%clk 0:02:58]} 3. d4 {[%clk 0:02:57]}  d6 {[%clk 0:02:59]} 4. exd6 {[%clk 0:02:40]}  exd6 {[%clk 0:02:57]} 5. c4 {[%clk 0:02:40]}  Nb6 {[%clk 0:02:55]} 6. Nc3 {[%clk 0:02:39]}  Be7 {[%clk 0:02:55]} 7. h3 {[%clk 0:02:39]}  O-O {[%clk 0:02:55]} 8. Nf3 {[%clk 0:02:39]}  Bf5 {[%clk 0:02:44]} 9. Be2 {[%clk 0:02:36]}  Nc6 {[%clk 0:02:24]} 10. O-O {[%clk 0:02:33]}  Bf6 {[%clk 0:02:24]} 11. Be3 {[%clk 0:02:24]}  d5 {[%clk 0:02:09]} 12. b3 {[%clk 0:02:14]}  Qd7 {[%clk 0:01:26]} 13. c5 {[%clk 0:01:41]}  Nc8 {[%clk 0:01:22]} 14. a3 {[%clk 0:01:19]}  a5 {[%clk 0:01:01]} 15. Nb5 {[%clk 0:01:12]}  Re8 {[%clk 0:00:46]} 16. Bf4 {[%clk 0:01:10]}  Bd8 {[%clk 0:00:42]} 17. Ne5 {[%clk 0:01:02]}  Nxe5 {[%clk 0:00:41]} 18. Bxe5 {[%clk 0:00:58]}  c6 {[%clk 0:00:39]} 19. Nd6 {[%clk 0:00:57]}  Nxd6 {[%clk 0:00:40]} 20. cxd6 {[%clk 0:00:47]}  Bf6 {[%clk 0:00:10]} 21. f4 {[%clk 0:00:32]}  Be4 {[%clk 0:00:00]} 22. Bg4 {[%clk 0:00:27]} 1-0


[Site "https://www.chess.com"]

[Event "Titled Tuesday Blitz June 27 Early 2023"]
[White "VoicelessFeather"]
[Black "Luukkonen, Tommi"]
[BlackFideId "501808"]
[WhiteElo "2142"]
[BlackElo "2405"]
[Result "0-1"]
[Round "3"]
[TimeControl "180+2"]
[Date "2023.06.27"]
[WhiteClock "0:00:29"]
[BlackClock "0:01:39"]
[Board "225"]

1. e4 {[%clk 0:03:00]}  c5 {[%clk 0:02:58]} 2. Nf3 {[%clk 0:03:00]}  d6 {[%clk 0:02:56]} 3. Bb5+ {[%clk 0:03:00]}  Nd7 {[%clk 0:02:56]} 4. c3 {[%clk 0:03:00]}  Nf6 {[%clk 0:02:54]} 5. Bd3 {[%clk 0:02:59]}  Qc7 {[%clk 0:02:43]} 6. O-O {[%clk 0:02:56]}  e6 {[%clk 0:02:42]} 7. Bc2 {[%clk 0:02:56]}  c4 {[%clk 0:02:39]} 8. b3 {[%clk 0:02:55]}  cxb3 {[%clk 0:02:35]} 9. axb3 {[%clk 0:02:56]}  Be7 {[%clk 0:02:29]} 10. d4 {[%clk 0:02:56]}  O-O {[%clk 0:02:27]} 11. Ba3 {[%clk 0:02:47]}  Rd8 {[%clk 0:02:24]} 12. e5 {[%clk 0:02:38]}  Nd5 {[%clk 0:02:22]} 13. c4 {[%clk 0:02:37]}  Nf4 {[%clk 0:02:19]} 14. exd6 {[%clk 0:02:15]}  Bxd6 {[%clk 0:02:20]} 15. c5 {[%clk 0:02:15]}  Be7 {[%clk 0:02:19]} 16. Nc3 {[%clk 0:01:50]}  Nf6 {[%clk 0:02:18]} 17. Ne5 {[%clk 0:01:34]}  Ng6 {[%clk 0:02:02]} 18. Nc4 {[%clk 0:01:28]}  Bd7 {[%clk 0:01:55]} 19. Ne4 {[%clk 0:01:05]}  Nxe4 {[%clk 0:01:52]} 20. Bxe4 {[%clk 0:01:05]}  Bc6 {[%clk 0:01:52]} 21. Bxc6 {[%clk 0:01:02]}  Qxc6 {[%clk 0:01:53]} 22. Bb2 {[%clk 0:00:52]}  Bf6 {[%clk 0:01:51]} 23. Qg4 {[%clk 0:00:51]}  Rd5 {[%clk 0:01:48]} 24. Ne3 {[%clk 0:00:49]}  Rg5 {[%clk 0:01:46]} 25. Qe2 {[%clk 0:00:47]}  Nf4 {[%clk 0:01:46]} 26. Qd2 {[%clk 0:00:36]}  Rxg2+ {[%clk 0:01:45]} 27. Kh1 {[%clk 0:00:29]}  Rg1+ {[%clk 0:01:39]} 0-1


[Site "https://www.chess.com"]